bitfinex/quotes_ETHUSD_20240828
["timestamp","ask_amount","ask_price","bid_price","bid_amount"]
[1724861287059,3.633201,2490.3,2489.4,7.41]
[1724861287060,7.648831,2490.3,2489.4,7.41]
[1724861287327,4.01683,2489.6,2489.4,7.41]
[1724861287825,4.01683,2489.6,2489.3,0.02349178]
[1724861288026,8.03367,2489.6,2489.3,0.02349178]
[1724861288264,4.01703,2489.4,2489.3,0.02349178]
[1724861288466,8.435763,2489.4,2489.3,0.02349178]
[1724861288682,4.01703,2489.4,2489.3,0.02349178]
[1724861289229,4.01656,2489.7,2489.3,2.29649178]
[1724861289540,4.01656,2489.7,2489.3,2.92788896]
[1724861289745,4.01656,2489.7,2489.3,2.29649178]
[1724861289927,4.01617,2490.0,2489.3,0.02349178]
[1724861290126,4.01652,2489.8,2489.3,0.02349178]
[1724861290328,4.01618,2490.0,2489.3,0.02349178]
[1724861290546,4.01649,2489.8,2489.3,0.10382324]
[1724861290767,4.01674,2489.6,2489.4,0.55]
[1724861290975,4.01645,2489.8,2489.4,0.55]
[1724861291268,4.01645,2489.8,2489.3,0.02349178]
[1724861291627,4.01611,2490.0,2489.3,4.12099551]
[1724861291829,7.01582,2490.2,2489.5,6.28696]
[1724861291830,4.01582,2490.2,2489.5,6.28696]
[1724861292030,4.01582,2490.2,2489.6,0.63032435]
[1724861292474,4.01599,2490.1,2489.6,0.63032435]
[1724861292629,4.01582,2490.2,2489.7,0.69172843]
[1724861292829,4.01582,2490.2,2489.8,0.55]
[1724861293175,4.0155,2490.4,2489.8,4.64666078]
[1724861293373,4.0155,2490.4,2489.8,0.63032078]
[1724861293529,11.46423,2491.2,2489.8,0.63032078]
[1724861293530,4.01516,2490.6,2490.0,2.3189]
[1724861293735,4.01543,2490.4,2490.1,0.55]
[1724861293932,0.44273114,2491.3,2490.1,0.55]
[1724861293933,4.01454,2491.0,2490.1,0.97861718]
[1724861294134,4.01503,2490.7,2490.1,8.30830674]
[1724861294372,8.02941,2490.9,2490.1,8.30830674]
[1724861294675,0.44273114,2491.3,2490.5,6.42225]
[1724861294676,4.01435,2491.1,2490.5,6.42225]
[1724861294868,4.01435,2491.1,2490.6,0.63029202]
[1724861295173,7.45,2491.8,2490.8,4.01475]
[1724861295174,4.0132,2491.8,2490.8,4.01475]
[1724861295477,6.33701,2492.1,2490.9,0.55]
[1724861295478,4.01439,2491.1,2490.9,0.55]
[1724861296146,8.02812,2491.3,2490.9,0.55]
[1724861296355,4.01403,2491.3,2490.8,4.01474]
[1724861296559,4.01382,2491.4,2490.9,0.55]
[1724861296979,4.01413,2491.2,2490.9,0.55]
[1724861297266,4.01398,2491.3,2490.8,0.55]
[1724861297569,4.01398,2491.3,2490.5,2.4071]
[1724861297570,4.01445,2491.0,2490.7,0.55]
[1724861297870,8.02846,2491.2,2490.6,0.55]
[1724861298027,4.01441,2491.1,2490.6,1.192241]
[1724861298229,4.01366,2491.5,2490.6,1.192241]
[1724861298474,4.0146,2491.0,2490.6,1.192241]
[1724861298678,4.01422,2491.2,2490.6,5.207331]
[1724861298885,4.01422,2491.2,2490.6,1.192241]
[1724861299176,4.01507,2490.7,2490.5,2.4071]
[1724861299684,4.01465,2490.9,2490.5,2.4071]
[1724861299976,5.86597273,2491.5,2490.5,2.4071]
[1724861299977,8.02982,2490.8,2490.5,2.4071]
[1724861300213,4.01455,2491.0,2490.5,2.4071]
[1724861300531,0.58659727,2491.4,2490.6,0.12126463]
[1724861300731,4.01477,2490.8,2490.7,0.55]
[1724861300976,4.01493,2490.7,2490.6,0.12126463]
[1724861301137,4.01493,2490.7,2490.2,9.8636]
[1724861301343,4.01493,2490.7,2490.2,3.841548]
[1724861301783,8.02997,2490.7,2490.2,3.841548]
[1724861301939,4.01493,2490.7,2490.2,2.4536]
[1724861302144,4.01493,2490.7,2489.9,11.03222]
[1724861302145,4.01602,2490.1,2489.9,2.3541]
[1724861302634,4.01515,2490.6,2489.5,9.7641]
[1724861302833,4.01653,2489.8,2489.5,2.3541]
[1724861303073,4.01612,2490.0,2489.5,2.3541]
[1724861303782,4.01681,2489.6,2489.3,0.02349178]
[1724861304134,8.03298,2489.8,2489.3,0.02349178]
[1724861304479,4.01674,2489.6,2489.3,0.02349178]
[1724861305081,4.01703,2489.4,2489.3,0.02349178]
[1724861305376,4.01674,2489.6,2489.3,0.02349178]
[1724861305749,8.03359,2489.6,2489.3,0.02349178]
[1724861305947,4.0169,2489.5,2489.3,0.02349178]
[1724861306144,4.01674,2489.6,2489.3,0.02349178]
[1724861306575,8.03357,2489.6,2489.3,0.57349178]
[1724861306875,4.01674,2489.6,2489.3,0.57349178]
[1724861307182,4.01578,2490.2,2489.4,4.01702]
[1724861307183,4.01608,2490.0,2489.4,4.01702]
[1724861307472,4.01591,2490.1,2489.5,4.64708877]
[1724861307692,4.01608,2490.0,2489.5,0.55]
[1724861307843,4.01631,2489.9,2489.5,0.63032524]
[1724861308038,3.3,2490.3,2489.5,0.63032524]
[1724861308039,4.01581,2490.2,2489.5,4.64709524]
[1724861308341,4.01516,2490.6,2490.0,4.01606]
[1724861308533,4.01567,2490.3,2490.1,0.55]
[1724861308741,4.01574,2490.2,2490.1,0.55]
[1724861308992,4.01497,2490.7,2489.8,7.41]
[1724861308993,4.01529,2490.5,2489.9,0.55]
[1724861309161,4.016,2490.1,2489.9,0.55]
[1724861309363,8.03201,2490.1,2489.9,0.55]
[1724861309560,8.03201,2490.1,2489.8,0.55]
[1724861309561,4.016,2490.1,2489.8,0.55]
[1724861309775,4.01566,2490.3,2489.8,0.55]
[1724861309979,4.01593,2490.1,2489.8,0.55]
[1724861310542,7.015,2490.7,2489.8,0.83956]
[1724861310808,4.0157,2490.3,2489.8,0.55]
[1724861311098,4.0157,2490.3,2489.3,9.40311457]
[1724861311099,4.01602,2490.1,2489.3,2.31739178]
[1724861311406,4.01648,2489.8,2489.3,2.31739178]
[1724861311539,4.01648,2489.8,2489.3,3.29013096]
[1724861311940,2.3122,2490.6,2489.3,3.29013096]
[1724861312284,4.01644,2489.8,2489.5,7.41]
[1724861312591,4.01644,2489.8,2489.6,0.55]
[1724861312746,3.0,2490.5,2489.3,3.29013096]
[1724861312747,4.01654,2489.7,2489.4,0.55]
[1724861312948,4.01687,2489.5,2489.3,2.31739178]
[1724861313145,4.01654,2489.7,2489.3,2.31739178]
[1724861313360,4.01657,2489.7,2489.3,4.50813096]
[1724861314161,4.01657,2489.7,2489.3,2.31739178]
[1724861314373,4.01687,2489.5,2489.4,0.55]
[1724861314894,4.01703,2489.4,2489.3,0.02349178]
[1724861315189,4.01681,2489.6,2489.3,0.02349178]
[1724861315418,8.03362,2489.6,2489.3,0.02349178]
[1724861315714,4.01673,2489.6,2489.4,0.12299362]
[1724861316015,4.01609,2490.0,2489.5,2.2794]
[1724861316171,4.01609,2490.0,2489.6,0.24023936]
[1724861316372,4.01609,2490.0,2489.7,0.55]
[1724861316573,4.01583,2490.2,2489.7,0.55]
[1724861316809,6.37721,2490.7,2489.8,0.12264027]
[1724861316810,2.3622,2490.7,2489.8,0.12264027]
[1724861317110,8.03244,2489.9,2489.8,0.12264027]
[1724861317313,4.01537,2490.5,2489.3,0.02349178]
[1724861317314,4.01579,2490.2,2489.3,0.02349178]
[1724861317609,4.01696,2489.5,2489.3,0.02349178]
[1724861317917,4.01696,2489.5,2489.4,0.12299362]
[1724861318099,8.03392,2489.5,2489.4,0.67299362]
[1724861318309,12.05088,2489.5,2489.4,0.12299362]
[1724861318671,12.77133673,2489.5,2489.4,0.12299362]
[1724861319058,8.03406,2489.4,2489.3,0.02349178]
[1724861319804,12.05109,2489.4,2489.3,0.02349178]
[1724861320076,8.03406,2489.4,2489.3,0.02349178]
[1724861320777,8.435597,2489.4,2489.3,0.02349178]
[1724861321118,15.452627,2489.4,2489.3,0.02349178]
[1724861321323,23.98682666,2489.4,2489.3,1.78e-06]
[1724861321644,4.01935,2488.0,2487.6,9.8226]
[1724861321865,4.01935,2488.0,2487.6,2.4126]
[1724861322140,4.01943,2488.0,2487.7,0.12460534]
[1724861322449,5.4976,2488.7,2487.7,0.12460534]
[1724861322450,4.01903,2488.2,2487.7,0.12460534]
[1724861322748,5.4976,2488.7,2487.2,5.36250279]
[1724861322749,4.01945,2487.9,2487.8,0.12451687]
[1724861323257,4.01945,2487.9,2487.2,6.47787]
[1724861323258,4.01971,2487.8,2487.2,6.47787]
[1724861323403,4.01945,2487.9,2487.3,4.02033]
[1724861323604,7.01884,2488.3,2487.3,4.14537929]
[1724861323804,4.0186,2488.5,2487.5,2.4574]
[1724861324011,4.0186,2488.5,2487.7,2.4574]
[1724861324229,4.0186,2488.5,2487.8,0.33415526]
[1724861324534,4.01835,2488.6,2488.0,4.01926]
[1724861324742,4.01835,2488.6,2487.9,4.14482979]
[1724861324743,4.0186,2488.5,2487.9,4.14482979]
[1724861324950,4.0183,2488.7,2488.1,4.14427801]
[1724861325114,4.01832,2488.6,2488.2,0.55]
[1724861325315,4.01832,2488.6,2488.3,0.12501113]
[1724861325639,4.01832,2488.6,2488.4,0.55]
[1724861325948,6.30962,2489.2,2488.4,0.55]
[1724861325949,8.03696,2488.5,2488.4,0.55]
[1724861326924,4.01848,2488.5,2488.4,0.55]
[1724861327449,4.01848,2488.5,2488.4,0.67480784]
[1724861327767,4.01833,2488.6,2488.4,0.67480784]
[1724861328284,4.01848,2488.5,2488.4,0.67480784]
[1724861328487,4.01833,2488.6,2488.4,0.55]
[1724861328645,4.01818,2488.7,2488.5,0.12471942]
[1724861328848,4.01818,2488.7,2488.6,0.55]
[1724861329042,8.03623,2488.8,2488.6,0.67542845]
[1724861329267,3.0,2489.1,2488.6,0.12542845]
[1724861329268,8.03632,2488.7,2488.6,0.12542845]
[1724861329480,4.01861,2488.5,2487.9,13.77233]
[1724861329778,4.01788,2488.9,2487.9,13.77233]
[1724861329779,4.01867,2488.4,2488.0,0.67595299]
[1724861329977,4.01907,2488.2,2488.0,0.67595299]
[1724861330418,4.01872,2488.4,2488.0,0.67595299]
[1724861330683,4.01841,2488.6,2488.0,0.67595299]
[1724861330844,4.01873,2488.4,2488.0,0.67595299]
[1724861331245,4.01913,2488.1,2488.0,0.67595299]
[1724861331499,8.03826,2488.1,2488.0,0.12595299]
[1724861331654,8.03826,2488.1,2487.1,2.3429]
[1724861331655,12.459303,2488.1,2487.1,2.3429]
[1724861331858,8.04044,2487.5,2487.1,2.3429]
[1724861332065,4.02047,2487.3,2487.2,0.12666084]
[1724861332362,4.02074,2487.1,2487.0,7.41]
[1724861332747,4.02058,2487.2,2487.0,7.41]
[1724861332948,4.02007,2487.6,2487.1,2.3432]
[1724861333276,8.04066,2487.4,2487.1,2.3432]
[1724861333478,4.02058,2487.2,2487.0,7.41]
[1724861333797,4.02074,2487.1,2487.0,7.41]
[1724861333961,4.02058,2487.2,2486.7,2.3432]
[1724861333962,4.02093,2487.0,2486.7,2.3432]
[1724861334487,4.02093,2487.0,2486.4,7.41]
[1724861334997,4.02066,2487.2,2486.6,4.02155]
[1724861335490,4.02066,2487.2,2486.5,4.02157]
[1724861335654,4.02066,2487.2,2486.4,11.43175]
[1724861335655,4.0209,2487.0,2486.4,11.43175]
[1724861335989,4.0209,2487.0,2486.5,0.55]
[1724861336668,4.02107,2486.9,2486.5,0.55]
[1724861336852,4.0211,2486.9,2486.5,0.55]
[1724861337053,4.02123,2486.8,2486.5,0.55]
[1724861337289,4.0223,2486.2,2485.9,7.41]
[1724861337607,4.0223,2486.2,2485.6,7.41]
[1724861337744,4.02255,2486.0,2485.6,7.41]
[1724861338281,3.0,2486.7,2485.6,7.41]
[1724861338599,4.02165,2486.6,2485.9,4.02255]
[1724861338748,4.02189,2486.4,2485.8,2.3968]
[1724861338949,8.04329,2486.6,2485.9,4.02265]
[1724861339187,4.02174,2486.5,2485.9,4.738659]
[1724861339386,4.02191,2486.4,2485.8,2.3968]
[1724861339704,4.02098,2487.0,2486.4,2.3968]
[1724861339852,4.02098,2487.0,2486.5,0.55]
[1724861340209,2.3486,2487.6,2486.5,0.55]
[1724861340210,4.02028,2487.4,2486.5,0.55]
[1724861340347,4.02028,2487.4,2486.2,7.41]
[1724861340348,4.02155,2486.6,2486.3,0.55]
[1724861340553,4.02096,2487.0,2486.3,0.55]
[1724861340554,4.02173,2486.5,2486.3,0.55]
[1724861340857,4.02187,2486.4,2486.3,0.55]
[1724861341176,8.04374,2486.4,2486.3,0.55]
[1724861341779,8.04338,2486.6,2486.3,0.55]
[1724861341953,4.02184,2486.5,2486.3,0.55]
[1724861342289,4.02187,2486.4,2486.3,0.55]
[1724861342496,4.02171,2486.5,2486.3,0.55]
[1724861342698,4.02171,2486.5,2486.1,0.55]
[1724861342904,4.02219,2486.3,2486.0,0.55]
[1724861343052,0.402219,2486.3,2485.6,9.8068]
[1724861343249,4.02269,2485.9,2485.6,2.3968]
[1724861343489,4.02269,2485.9,2485.3,7.41]
[1724861344195,4.0231,2485.7,2485.3,7.41]
[1724861344397,4.0231,2485.7,2485.2,2.4867]
[1724861344677,4.02278,2485.9,2485.2,8.781952]
[1724861344861,4.02304,2485.7,2485.2,4.758172]
[1724861345069,4.02304,2485.7,2485.2,2.4867]
[1724861345424,8.04615,2485.7,2485.2,2.4867]
[1724861345559,4.02318,2485.6,2485.3,0.12594336]
[1724861345760,8.04698,2485.4,2485.3,0.12594336]
[1724861346206,8.04698,2485.4,2484.6,9.7499]
[1724861346207,4.02379,2485.3,2484.7,4.02462]
[1724861346402,4.02349,2485.4,2484.6,13.77466]
[1724861346403,4.02383,2485.2,2484.6,13.77466]
[1724861346573,4.02383,2485.2,2484.8,0.12638667]
[1724861346768,4.02383,2485.2,2484.7,0.65021682]
[1724861346974,4.02383,2485.2,2484.6,13.77466]
[1724861346975,4.02383,2485.2,2484.9,0.126298]
[1724861347209,4.02247,2486.1,2484.9,0.126298]
[1724861347210,4.02262,2486.0,2484.9,2.4552]
[1724861347391,4.02235,2486.2,2485.5,4.0232]
[1724861347706,2.4937,2486.3,2485.6,0.12567746]
[1724861347707,4.02301,2485.7,2485.6,0.12567746]
[1724861347917,4.02301,2485.7,2485.0,2.4552]
[1724861348063,4.02301,2485.7,2484.7,7.41]
[1724861348064,4.02374,2485.3,2485.1,0.12612066]
[1724861348264,4.02382,2485.2,2484.7,9.8652]
[1724861348465,4.02364,2485.4,2484.8,4.23122862]
[1724861348667,4.02359,2485.4,2484.8,0.12638667]
[1724861348899,4.02428,2485.0,2484.8,0.12638667]
[1724861349132,4.02389,2485.2,2484.8,0.12638667]
[1724861349475,4.02326,2485.6,2484.8,4.15084667]
[1724861349676,4.02326,2485.6,2485.0,4.02405]
[1724861349894,4.02326,2485.6,2485.1,4.15003066]
[1724861350096,2.4937,2485.6,2485.1,0.12612066]
[1724861350408,2.4937,2485.6,2484.7,2.4552]
[1724861350409,4.02364,2485.4,2484.7,4.02447]
[1724861350710,4.02291,2485.8,2485.2,6.47891]
[1724861350910,4.02285,2485.8,2485.3,0.12670066]
[1724861351415,2.4937,2486.2,2485.3,0.12670066]
[1724861351416,4.02231,2486.2,2485.3,0.12670066]
[1724861351627,4.02231,2486.2,2485.4,0.55]
[1724861351903,2.4937,2486.6,2485.4,0.55]
[1724861352111,4.02232,2486.2,2485.7,4.02288]
[1724861352273,4.02253,2486.0,2485.8,0.12625753]
[1724861352618,4.02253,2486.0,2485.9,0.55]
[1724861352819,4.02253,2486.0,2485.9,0.67616892]
[1724861353367,12.06775,2486.0,2485.9,0.12616892]
[1724861353609,8.04514,2486.0,2485.9,0.12616892]
[1724861353775,4.02253,2486.0,2485.4,4.0234]
[1724861353980,4.0223,2486.2,2485.6,4.02304]
[1724861354300,2.4937,2486.6,2485.9,2.3936]
[1724861354301,8.04333,2486.6,2485.9,2.3936]
[1724861354512,8.04333,2486.6,2486.0,4.69970646]
[1724861354672,4.02101,2487.0,2486.1,0.0804428]
[1724861354869,0.59109143,2487.2,2486.1,0.0804428]
[1724861354870,4.0207,2487.2,2486.6,4.02147]
[1724861355221,4.02067,2487.2,2486.7,0.67658647]
[1724861355380,4.02034,2487.4,2486.8,4.02121]
[1724861355583,4.02034,2487.4,2486.9,0.55]
[1724861355584,4.02084,2487.1,2486.9,0.55]
[1724861355789,4.02084,2487.1,2486.9,0.12629428]
[1724861355992,4.02024,2487.5,2487.0,0.55]
[1724861356307,4.01988,2487.7,2487.1,4.14622669]
[1724861356617,4.02008,2487.6,2487.2,0.55]
[1724861356840,4.02042,2487.3,2487.2,0.55]
[1724861357014,4.01972,2487.8,2487.3,0.12544967]
[1724861357190,4.01934,2488.0,2487.5,2.4294]
[1724861357393,4.01934,2488.0,2487.5,6.44938]
[1724861357585,4.01946,2487.9,2487.6,0.55]
[1724861357792,4.01934,2488.0,2487.6,0.66958314]
[1724861358104,0.50274219,2488.3,2487.6,0.66958314]
[1724861358300,4.01948,2487.9,2487.6,0.66958314]
[1724861358705,8.03908,2487.9,2487.6,0.66958314]
[1724861358918,8.03904,2487.9,2487.6,0.66958314]
[1724861359086,4.01948,2487.9,2487.6,0.66958314]
[1724861359793,4.01977,2487.7,2487.6,0.66958314]
[1724861360029,4.01977,2487.7,2487.6,0.11958314]
[1724861360402,4.02006,2487.6,2487.1,2.3226]
[1724861360608,4.01936,2488.0,2486.6,3.0]
[1724861360609,4.02026,2487.4,2486.7,2.3226]
[1724861360946,4.02072,2487.2,2486.7,2.3226]
[1724861361147,4.02161,2486.6,2486.0,6.30463]
[1724861361305,4.02183,2486.5,2486.0,2.2822]
[1724861361506,4.02204,2486.3,2486.0,2.2822]
[1724861362052,4.02251,2486.1,2485.6,2.2822]
[1724861362252,4.02174,2486.5,2485.6,2.2822]
[1724861362555,4.02297,2485.8,2485.6,2.2822]
[1724861363063,8.04457,2486.2,2485.6,2.2822]
[1724861363362,4.02195,2486.4,2485.8,4.02283]
[1724861363566,4.02061,2487.2,2486.1,10.45683]
[1724861363706,4.0214,2486.7,2486.2,4.10263216]
[1724861364034,4.02175,2486.5,2486.1,2.4123]
[1724861364235,4.02186,2486.5,2486.1,2.4123]
[1724861364441,4.02209,2486.3,2486.1,2.4123]
[1724861364609,4.02209,2486.3,2486.2,0.55]
[1724861365121,4.02164,2486.6,2486.2,0.55]
[1724861365450,4.02191,2486.4,2486.2,0.55]
[1724861365649,4.02204,2486.3,2486.2,0.55]
[1724861365852,4.0227,2485.9,2485.7,2.4123]
[1724861366066,4.02131,2486.8,2485.2,2.456]
[1724861366067,4.02284,2485.8,2485.2,2.456]
[1724861366362,4.02262,2486.0,2485.5,4.02319]
[1724861366363,4.02261,2486.0,2485.5,4.02319]
[1724861367008,4.02196,2486.4,2485.3,2.3446]
[1724861367213,4.02196,2486.4,2485.6,4.02306]
[1724861367452,2.2974,2486.8,2485.4,4.02338]
[1724861367616,4.02246,2486.1,2485.3,2.3446]
[1724861367948,4.02246,2486.1,2485.5,4.02331]
[1724861368153,4.02246,2486.1,2485.4,4.02335]
[1724861368154,4.02266,2486.0,2485.4,4.02335]
[1724861368353,4.02175,2486.5,2485.3,2.3446]
[1724861368354,4.02329,2485.6,2485.3,2.3446]
[1724861368826,4.02335,2485.5,2485.0,4.02403]
[1724861369027,4.02312,2485.7,2485.0,0.402403]
[1724861369214,4.0227,2485.9,2485.2,4.02372]
[1724861369413,4.0227,2485.9,2485.3,4.02355]
[1724861369722,0.71975373,2485.9,2485.0,0.402403]
[1724861369948,4.0233,2485.6,2485.0,4.02405]
[1724861370251,4.02266,2486.0,2485.4,4.02348]
[1724861370450,4.02191,2486.4,2485.5,2.4194]
[1724861370451,4.02278,2485.9,2485.5,2.4194]
[1724861370810,4.02241,2486.1,2485.5,2.4194]
[1724861371035,4.02241,2486.1,2485.6,4.02303]
[1724861371257,2.3204,2486.5,2485.0,2.65386]
[1724861371415,4.02293,2485.8,2485.2,4.02372]
[1724861371617,4.02223,2486.2,2485.1,4.02397]
[1724861371618,4.0224,2486.1,2485.1,4.02397]
[1724861371848,4.0224,2486.1,2485.4,4.02345]
[1724861372286,4.02252,2486.0,2485.4,4.02345]
[1724861372440,0.402252,2486.0,2485.5,0.55]
[1724861372639,4.02191,2486.4,2485.2,6.44313]
[1724861372640,4.02276,2485.9,2485.3,0.55]
[1724861372944,0.59834143,2486.4,2485.3,0.55]
[1724861373285,0.59834143,2486.4,2484.8,6.44376]
[1724861373286,4.02381,2485.3,2484.8,6.44376]
[1724861374039,4.02349,2485.4,2484.8,10.46812]
[1724861374239,4.02349,2485.4,2484.8,11.514932]
[1724861374544,4.02349,2485.4,2484.8,11.514942]
[1724861374766,4.02349,2485.4,2484.8,7.490572]
[1724861374978,4.02352,2485.4,2484.8,7.490572]
[1724861375256,4.02328,2485.6,2485.0,4.02414]
[1724861375459,4.02328,2485.6,2485.1,0.55]
[1724861375640,4.02358,2485.4,2485.1,0.11508214]
[1724861375879,4.02365,2485.3,2485.2,0.55]
[1724861376076,8.63917414,2485.3,2485.2,0.55]
[1724861376286,4.61552414,2485.3,2485.2,0.66499348]
[1724861376753,4.02365,2485.3,2485.2,0.66499348]
[1724861376940,4.02365,2485.3,2485.2,0.55]
[1724861377260,8.0473,2485.3,2485.2,0.66505978]
[1724861377636,12.07095,2485.3,2485.2,0.11505978]
[1724861377968,12.07095,2485.3,2484.5,2.3019]
[1724861377969,4.02408,2485.1,2484.5,6.32684]
[1724861378159,8.04755,2485.3,2484.7,4.02459]
[1724861378475,4.02367,2485.3,2484.8,0.51787947]
[1724861378687,8.04742,2485.3,2484.8,0.51787947]
[1724861378838,4.02408,2485.1,2484.8,0.11542047]
[1724861379040,4.02423,2485.0,2484.8,0.11542047]
[1724861379258,4.02438,2484.9,2484.4,4.0251]
[1724861379460,4.02449,2484.8,2484.3,15.67796493]
[1724861379682,4.02449,2484.8,2484.3,8.26796493]
[1724861380565,4.02472,2484.7,2484.3,2.3019]
[1724861381183,4.02484,2484.6,2484.3,2.3019]
[1724861381388,4.0245,2484.8,2484.3,6.32706]
[1724861381596,4.02389,2485.2,2484.5,4.0248]
[1724861381783,2.2912,2485.4,2484.4,4.02511]
[1724861381784,4.02432,2484.9,2484.4,4.02511]
[1724861381982,4.02409,2485.1,2484.5,4.02493]
[1724861382303,4.0243,2484.9,2484.4,4.657816]
[1724861382462,4.0243,2484.9,2484.5,4.57494]
[1724861382661,6.31473,2485.4,2484.5,0.55]
[1724861382662,2.2912,2485.4,2484.5,0.55]
[1724861382858,8.04907,2484.8,2484.5,0.55]
[1724861383086,4.02451,2484.8,2484.4,0.55]
[1724861383701,0.52912,2485.3,2484.4,0.55]
[1724861383702,4.02479,2484.6,2484.4,0.55]
[1724861384005,4.02495,2484.5,2484.4,0.55]
[1724861384207,8.04972,2484.6,2484.4,0.55]
[1724861384406,4.02503,2484.5,2484.2,0.55]
[1724861384580,4.02503,2484.5,2484.1,0.55]
[1724861384776,4.02512,2484.4,2484.1,0.55]
[1724861385009,4.02512,2484.4,2484.0,0.55]
[1724861385308,4.02474,2484.7,2484.2,4.02539]
[1724861385490,4.02474,2484.7,2484.0,1.237769]
[1724861385491,4.02457,2484.8,2484.3,0.55]
[1724861385694,4.02464,2484.7,2484.3,0.55]
[1724861386004,3.0,2485.3,2484.3,0.55]
[1724861386005,6.31477,2485.4,2484.5,4.02485]
[1724861386165,4.02309,2485.7,2484.5,4.02485]
[1724861386166,4.02393,2485.2,2484.5,4.02485]
[1724861386365,4.02415,2485.0,2484.6,0.55]
[1724861386561,4.02463,2484.7,2484.4,2.4461]
[1724861386826,4.02447,2484.8,2484.4,2.4461]
[1724861387132,4.02463,2484.7,2484.4,2.4461]
[1724861387442,4.02463,2484.7,2484.1,9.41143574]
[1724861387443,4.02497,2484.5,2484.1,2.3612]
[1724861387731,4.0252,2484.4,2484.1,2.3612]
[1724861387914,4.02497,2484.5,2484.1,2.3612]
[1724861388236,4.02475,2484.7,2484.2,4.02531]
[1724861388392,3.0,2485.3,2484.1,4.143468]
[1724861388393,4.02422,2485.0,2484.5,4.02485]
[1724861388592,4.02447,2484.8,2484.3,4.02527]
[1724861388795,4.02447,2484.8,2484.4,0.55]
[1724861389100,4.02407,2485.1,2484.5,4.02487]
[1724861389289,4.02376,2485.3,2484.7,4.02462]
[1724861389492,8.04757,2485.3,2484.8,0.55]
[1724861389690,4.02376,2485.3,2484.8,0.55]
[1724861389922,4.02394,2485.2,2484.8,0.55]
[1724861390332,4.02376,2485.3,2484.8,4.57445]
[1724861390549,4.02342,2485.5,2484.9,0.11241955]
[1724861390832,4.02366,2485.3,2485.0,0.55]
[1724861391032,4.0239,2485.2,2485.0,0.55]
[1724861391202,4.02366,2485.3,2485.1,0.11224222]
[1724861391406,4.02366,2485.3,2485.2,0.43]
[1724861391735,4.0235,2485.4,2485.2,0.43]
[1724861391895,4.02343,2485.5,2485.2,0.54215356]
[1724861392097,4.02358,2485.4,2485.2,0.54215356]
[1724861392297,4.02365,2485.3,2485.2,0.54215356]
[1724861392834,4.02311,2485.7,2485.2,0.54215356]
[1724861393001,4.02336,2485.5,2485.2,0.54215356]
[1724861393416,4.02365,2485.3,2485.2,0.54215356]
[1724861394233,8.0473,2485.3,2485.2,0.11215356]
[1724861394609,4.02487,2484.6,2484.4,7.41]
[1724861394813,4.02487,2484.6,2484.3,2.3312]
[1724861395012,5.3635,2485.4,2484.0,2.2769]
[1724861395013,4.02523,2484.4,2484.0,2.2769]
[1724861395411,8.05049,2484.4,2484.0,2.2769]
[1724861395617,8.04978,2484.6,2484.0,2.2769]
[1724861395929,4.02488,2484.6,2484.1,4.02544]
[1724861396141,4.02488,2484.6,2484.1,1.032794]
[1724861396445,4.02464,2484.7,2484.2,4.02543]
[1724861396647,4.02443,2484.9,2484.0,2.2769]
[1724861396877,4.024,2485.1,2484.0,2.2769]
[1724861396878,4.02493,2484.6,2484.0,6.30265]
[1724861397080,4.02474,2484.7,2484.2,4.02531]
[1724861397552,4.02474,2484.7,2484.1,6.01623074]
[1724861397553,4.02494,2484.6,2484.1,6.01623074]
[1724861397740,4.02505,2484.5,2484.0,2.2769]
[1724861397935,8.0501,2484.5,2484.1,0.55]
[1724861398139,0.59834143,2485.1,2484.1,0.55]
[1724861398140,4.62237143,2485.1,2484.1,0.55]
[1724861398480,8.05054,2484.4,2484.1,0.55]
[1724861398650,4.02531,2484.3,2484.1,0.55]
[1724861398846,8.05054,2484.4,2484.1,0.55]
[1724861399058,4.02521,2484.4,2484.1,0.55]
[1724861399249,8.05042,2484.4,2484.1,0.55]
[1724861399562,4.62237143,2485.1,2483.8,7.41]
[1724861399563,4.02579,2484.0,2483.8,7.41]
[1724861399960,4.02552,2484.2,2483.8,7.41]
[1724861400168,4.02522,2484.4,2483.9,2.4303]
[1724861400365,4.02571,2484.1,2483.8,7.41]
[1724861400565,4.02535,2484.3,2483.8,7.41]
[1724861400873,4.02535,2484.3,2483.8,11.43605]
[1724861401079,4.02552,2484.2,2483.8,7.41]
[1724861401293,4.02552,2484.2,2483.9,0.55]
[1724861401453,4.0256,2484.1,2483.9,0.55]
[1724861401773,4.02543,2484.3,2483.9,0.55]
[1724861402032,4.0243,2484.9,2484.3,4.02513]
[1724861402318,4.0243,2484.9,2484.4,4.57502]
[1724861402615,4.02406,2485.1,2484.7,4.02461]
[1724861402772,4.02375,2485.3,2484.8,0.55]
[1724861402977,4.02333,2485.5,2485.0,4.02413]
[1724861403191,4.0231,2485.7,2485.1,2.95387909]
[1724861403387,2.3065,2486.1,2485.2,0.08046946]
[1724861403388,4.02244,2486.1,2485.2,0.08046946]
[1724861403627,4.02294,2485.8,2485.3,0.55]
[1724861404117,4.02259,2486.0,2485.4,4.02348]
[1724861404293,8.04522,2486.0,2485.5,0.55]
[1724861404494,8.04634,2485.6,2485.5,0.55]
[1724861404818,8.04634,2485.6,2484.8,6.32205]
[1724861404819,4.02359,2485.4,2484.8,6.32205]
[1724861405024,4.02359,2485.4,2484.9,4.57426]